bitfinex/quotes_SOLUSD_20250321
["timestamp","ask_amount","ask_price","bid_price","bid_amount"]
[1742527597246,0.0001,127.86,127.85,395.81542209]
[1742527600049,0.0001,127.86,127.85,83.81542209]
[1742527600747,0.0001,127.86,127.85,97.64170751]
[1742527602543,0.0001,127.86,127.85,116.57567951]
[1742527603126,0.0001,127.86,127.85,428.57567951]
[1742527612353,0.0001,127.86,127.85,421.44939409]
[1742527613058,0.0001,127.86,127.85,402.51542209]
[1742527615254,0.0001,127.86,127.85,90.51542209]
[1742527617157,0.0001,127.86,127.85,104.34170751]
[1742527618258,0.0001,127.86,127.85,416.34170751]
[1742527619253,0.0001,127.86,127.85,104.34170751]
[1742527621857,0.0001,127.86,127.85,90.51542209]
[1742527622361,0.0001,127.86,127.85,402.51542209]
[1742527623260,0.0001,127.86,127.85,416.34170751]
[1742527623564,0.0001,127.86,127.85,402.51542209]
[1742527626273,0.0001,127.86,127.85,326.5846]
[1742527628568,0.0001,127.86,127.85,14.5846]
[1742527629862,0.0001,127.86,127.85,7.8846]
[1742527631548,0.0001,127.86,127.85,319.8846]
[1742527634668,0.0001,127.86,127.85,7.8846]
[1742527637671,0.0001,127.86,127.85,319.8846]
[1742527637873,0.0001,127.86,127.85,312.063]
[1742527641477,0.0001,127.86,127.85,0.063]
[1742527644577,0.0001,127.86,127.85,312.063]
[1742527647491,0.0001,127.86,127.85,0.063]
[1742527650585,0.0001,127.86,127.85,312.063]
[1742527653891,0.0001,127.86,127.85,0.063]
[1742527656083,13.82638542,127.86,127.85,0.063]
[1742527659566,21.64738542,127.86,127.85,0.063]
[1742527659771,85.2304271,127.86,127.85,0.063]
[1742527660289,7.8222,127.84,127.79,0.063]
[1742527660493,13.82628542,127.8,127.79,0.063]
[1742527661682,13.82628542,127.81,127.79,0.063]
[1742527661882,13.82628542,127.83,127.8,20.0]
[1742527662080,13.82628542,127.85,127.8,33.82628542]
[1742527662281,13.82628542,127.85,127.81,6.7]
[1742527662475,13.82628542,127.85,127.82,7.8235]
[1742527662993,13.82628542,127.85,127.82,319.8235]
[1742527666111,13.82628542,127.85,127.82,7.8235]
[1742527666700,13.82628542,127.84,127.82,7.8235]
[1742527669126,13.82628542,127.84,127.82,319.8235]
[1742527672205,13.82628542,127.84,127.82,7.8235]
[1742527674227,13.85628542,127.85,127.82,7.8235]
[1742527675295,13.85628542,127.85,127.82,319.8235]
[1742527675612,13.82628542,127.84,127.82,319.8235]
[1742527676314,13.82628542,127.84,127.82,312.0]
[1742527676610,13.82628542,127.83,127.81,0.063]
[1742527676913,13.82628542,127.82,127.81,0.063]
[1742527681504,21.64978542,127.82,127.81,0.063]
[1742527682298,13.82628542,127.82,127.81,0.063]
[1742527682912,21.64978542,127.82,127.81,0.063]
[1742527683701,13.82628542,127.82,127.81,0.063]
[1742527684510,13.82628542,127.84,127.81,0.063]
[1742527685406,13.82628542,127.83,127.81,0.063]
[1742527686923,13.82628542,127.84,127.81,0.063]
[1742527690128,13.85628542,127.85,127.81,0.063]
[1742527690424,13.85628542,127.85,127.81,0.63164628]
[1742527690624,0.03,127.85,127.82,33.82628542]
[1742527690819,0.03,127.85,127.83,13.82628542]
[1742527692327,0.03,127.85,127.84,7.8222]
[1742527692708,0.03,127.85,127.84,319.8222]
[1742527693823,0.03,127.85,127.84,360.34848542]
[1742527694626,0.03,127.85,127.84,360.9171317]
[1742527697930,0.03,127.85,127.84,48.9171317]
[1742527699137,0.03,127.85,127.84,34.5222]
[1742527700724,0.03,127.85,127.84,360.34848542]
[1742527701633,0.03,127.85,127.84,346.5222]
[1742527703715,0.03,127.85,127.84,360.34848542]
[1742527705435,0.03,127.85,127.84,346.5222]
[1742527705853,0.03,127.85,127.84,346.5852]
[1742527707846,0.03,127.85,127.84,360.9801317]
[1742527713842,0.03,127.85,127.84,67.62978056]
[1742527714024,0.03,127.85,127.84,379.62978056]
[1742527717746,0.03,127.85,127.84,455.27627951]
[1742527720853,0.03,127.85,127.84,143.27627951]
[1742527722043,0.03,127.85,127.84,144.83997853]
[1742527722219,0.0001,127.85,127.84,158.66626395]
[1742527722424,0.0001,127.86,127.85,19.21829514]
[1742527722727,0.0001,127.91,127.85,19.21829514]
[1742527722728,0.0001,127.91,127.9,33.82628542]
[1742527722936,0.0001,127.91,127.9,40.52628542]
[1742527723934,0.0001,127.91,127.9,360.9135317]
[1742527725947,0.0001,127.91,127.9,347.08724628]
[1742527727457,0.0001,127.91,127.9,360.9135317]
[1742527729731,0.0001,127.91,127.9,347.08724628]
[1742527730252,0.0001,127.91,127.9,360.9135317]
[1742527738158,0.0001,127.91,127.9,379.56318056]
[1742527739053,0.0001,127.91,127.9,67.56318056]
[1742527741341,0.0001,127.91,127.9,143.20967951]
[1742527741952,0.0001,127.91,127.9,455.20967951]
[1742527748266,0.0001,127.91,127.9,143.20967951]
[1742527751364,0.0001,127.91,127.9,455.20967951]
[1742527754359,0.063,127.94,127.93,40.28432314]
[1742527754548,0.063,127.94,127.93,54.3949317]
[1742527756266,0.063,127.94,127.93,62.2116317]
[1742527757868,0.063,127.94,127.93,374.2116317]
[1742527758752,0.063,127.94,127.93,156.50777951]
[1742527761771,0.063,127.94,127.93,468.50777951]
[1742527773287,0.0001,127.94,127.93,468.50777951]
[1742527785789,0.063,127.97,127.96,20.0]
[1742527785998,0.063,127.97,127.96,116.43710751]
[1742527786189,0.063,127.97,127.96,116.72143065]
[1742527787094,0.063,127.97,127.96,124.53633065]
[1742527787484,0.0001,127.97,127.96,124.53633065]
[1742527788479,0.0001,127.97,127.96,143.18597951]
[1742527788872,0.0001,127.98,127.97,0.56864628]
[1742527789077,0.0001,127.98,127.97,334.2092317]
[1742527789879,0.0001,127.98,127.97,352.85888056]
[1742527792994,0.0001,127.98,127.97,428.50537951]
[1742527800505,0.0001,127.98,127.97,414.39477095]
[1742527800914,0.0301,127.98,127.97,414.67909409]
[1742527801094,0.0301,127.98,127.97,428.50537951]
[1742527805512,0.0001,127.98,127.97,428.50537951]
[1742527805906,0.0001,127.99,127.98,39.21829514]
[1742527806213,0.0001,127.99,127.98,108.34972224]
[1742527806417,0.0001,127.99,127.98,116.16342224]
[1742527809295,0.03,128.04,128.03,20.56864628]
[1742527809498,0.03,128.04,128.03,135.37107951]
[1742527810900,0.03,128.04,128.03,143.18167951]
[1742527812818,0.03,128.04,128.03,455.18167951]
[1742527814316,0.03,128.04,128.03,448.50167951]
[1742527814521,0.03,128.04,128.03,455.18167951]
[1742527815509,0.03,128.04,128.03,428.72143065]
[1742527815819,0.03,128.04,128.03,408.21514523]
[1742527816221,0.03,128.04,128.03,416.02574523]
[1742527816606,0.03,128.04,128.03,408.21514523]
[1742527817110,0.03,128.04,128.03,416.02574523]
[1742527817500,0.03,128.04,128.03,448.50167951]
[1742527818919,0.03,128.04,128.03,416.02574523]
[1742527820428,0.03,128.04,128.03,429.85203065]
[1742527820722,0.03,128.04,128.03,416.02574523]
[1742527820904,0.03,128.04,128.03,408.21514523]
[1742527822324,0.03,128.04,128.03,416.02574523]
[1742527824321,0.03,128.04,128.03,448.50167951]
[1742527827209,0.03,128.04,128.03,434.67539409]
[1742527827425,0.03,128.04,128.03,416.02574523]
[1742527831137,0.03,128.04,128.03,448.50167951]
[1742527839115,0.03,128.07,128.03,448.50167951]
[1742527839116,0.03,128.07,128.06,20.28432314]
[1742527839333,0.03,128.07,128.06,45.89829514]
[1742527839532,0.03,128.07,128.06,67.53338056]
[1742527842438,0.03,128.07,128.06,379.53338056]
[1742527843340,0.03,128.07,128.06,455.17987951]
[1742527845646,0.03,128.07,128.06,455.89505809]
[1742527853349,0.03,128.11,128.1,20.28432314]
[1742527853544,0.03,128.11,128.1,20.56864628]
[1742527854150,0.03,128.11,128.1,20.0]
[1742527854533,0.03,128.11,128.1,42.91651028]
[1742527854737,0.03,128.11,128.1,49.59651028]
[1742527855554,0.03,128.11,128.1,68.24615914]
[1742527856532,0.03,128.11,128.1,380.24615914]
[1742527856738,0.03,128.11,128.1,365.70469514]
[1742527857452,0.03,128.11,128.1,347.05504628]
[1742527857641,0.03,128.11,128.1,346.4864]
[1742527857849,0.03,128.11,128.1,338.68]
[1742527858242,0.03,128.11,128.1,20.0]
[1742527858243,22.302364,128.11,128.1,20.0]
[1742527858644,0.03,128.11,128.1,20.0]
[1742527861056,14.571464,128.11,128.1,20.0]
[1742527861781,14.571464,128.11,128.08,26.68]
[1742527862055,14.541464,128.1,128.08,26.68]
[1742527862636,14.571464,128.11,128.08,26.68]
[1742527864357,0.03,128.11,128.08,34.4876]
[1742527864541,14.571464,128.11,128.08,34.4876]
[1742527865334,14.571464,128.11,128.08,26.68]
[1742527865335,14.541464,128.1,128.08,26.68]
[1742527866246,14.571464,128.11,128.08,34.4875]
[1742527867255,14.571464,128.11,128.08,26.68]
[1742527867455,22.502064,128.09,128.04,27.8097]
[1742527867660,14.541464,128.07,128.04,20.0]
[1742527868257,14.541464,128.08,128.04,20.0]
[1742527868641,14.541464,128.07,128.04,20.0]
[1742527869063,14.541464,128.05,128.03,0.063]
[1742527869295,14.541464,128.04,128.03,0.063]
[1742527869564,14.541464,128.05,128.03,0.063]
[1742527870064,14.541464,128.06,128.03,0.063]
[1742527871647,14.541464,128.05,128.03,0.063]
[1742527872870,14.541464,128.08,128.04,20.0]
[1742527873176,0.03,128.11,128.06,20.0]
[1742527873353,14.571464,128.11,128.07,14.541464]
[1742527873558,0.03,128.11,128.08,20.0]
[1742527873946,14.571464,128.11,128.08,20.0]
[1742527875064,14.571464,128.11,128.09,7.807]
[1742527875869,0.03,128.11,128.09,319.807]
[1742527876449,0.03,128.11,128.1,20.0]
[1742527877149,0.03,128.11,128.1,27.8064]
[1742527879273,0.03,128.11,128.1,28.37504628]
[1742527879457,0.03,128.11,128.1,373.56615914]
[1742527879854,0.03,128.11,128.1,359.02469514]
[1742527880268,0.03,128.11,128.1,339.8064]
[1742527880965,14.571464,128.11,128.1,312.0]
[1742527881650,0.03,128.11,128.1,312.0]
[1742527883774,0.03,128.11,128.1,319.8064]
[1742527883972,0.03,128.11,128.1,339.8064]
[1742527885175,0.03,128.11,128.1,354.91651028]
[1742527885365,0.03,128.11,128.1,373.56615914]
[1742527889968,0.03,128.11,128.1,373.55824283]
[1742527895884,0.03,128.11,128.1,359.02469514]
[1742527898393,0.03,128.11,128.1,373.55824283]
[1742527901691,0.03,128.11,128.1,359.02469514]
[1742527901870,0.03,128.11,128.1,373.55824283]
[1742527902984,0.03,128.11,128.1,354.90859397]
[1742527903167,0.03,128.11,128.1,340.37504628]
[1742527903367,14.56354769,128.11,128.1,312.0]
[1742527903574,14.56354769,128.11,128.08,20.0]
[1742527903880,14.53354769,128.09,128.08,20.0]
[1742527904466,14.53354769,128.1,128.08,20.0]
[1742527909089,14.53354769,128.09,128.06,20.063]
[1742527909291,14.53354769,128.08,128.06,20.063]
[1742527911296,14.53354769,128.09,128.06,20.063]
[1742527914401,14.53354769,128.08,128.06,20.063]
[1742527917285,14.53354769,128.09,128.06,20.063]
[1742527920204,14.53354769,128.08,128.06,20.063]
[1742527920389,14.53354769,128.09,128.06,20.063]
[1742527921603,14.53354769,128.07,128.06,0.063]
[1742527922108,14.53354769,128.08,128.06,0.063]
[1742527923690,14.53354769,128.07,128.06,0.063]
[1742527925191,33.18319655,128.07,128.06,0.063]
[1742527925793,40.99139655,128.07,128.06,0.063]
[1742527926203,7.8433,128.06,128.05,0.063]
[1742527926488,22.37684769,128.06,128.05,0.063]
[1742527927420,22.37684769,128.06,128.03,0.063]
[1742527927421,7.8094,128.05,128.03,0.063]
[1742527927605,14.53354769,128.04,128.03,0.063]
[1742527928311,22.34354769,128.04,128.03,0.063]
[1742527932114,14.53354769,128.04,128.03,0.063]
[1742527933809,22.34354769,128.04,128.03,0.063]
[1742527935722,14.53354769,128.04,128.03,0.063]
[1742527935912,14.53354769,128.06,128.03,0.063]
[1742527936603,14.53354769,128.05,128.03,0.063]
[1742527937711,14.53354769,128.06,128.03,0.063]
[1742527938028,14.53354769,128.05,128.03,0.063]
[1742527938325,14.53354769,128.06,128.03,0.063]
[1742527938927,14.53354769,128.06,128.03,312.063]
[1742527939107,14.53354769,128.05,128.03,312.063]
[1742527943428,14.53354769,128.06,128.03,319.8736]
[1742527943939,14.56354769,128.07,128.03,319.8736]
[1742527944235,14.56354769,128.07,128.03,7.8736]
[1742527944739,14.53354769,128.06,128.03,7.8736]
[1742527946433,14.53354769,128.05,128.03,7.8736]
[1742527946633,14.53354769,128.05,128.03,0.063]
[1742527947239,14.53354769,128.05,128.03,312.063]
[1742527948421,14.53354769,128.05,128.03,319.8735]
[1742527949438,14.53354769,128.06,128.03,319.8735]
[1742527950333,14.53354769,128.06,128.03,7.8735]
[1742527952734,14.53354769,128.05,128.03,7.8735]
[1742527952942,14.53354769,128.05,128.03,0.063]
[1742527953326,14.53354769,128.05,128.03,312.063]
[1742527955840,14.53354769,128.06,128.03,312.063]
[1742527956643,14.53354769,128.06,128.03,319.8735]
[1742527958124,14.56354769,128.06,128.03,319.8735]
[1742527958529,14.56354769,128.06,128.03,0.063]
[1742527958851,14.53354769,128.05,128.03,0.063]
[1742527960321,14.53354769,128.04,128.03,0.063]
[1742527961644,7.8095,128.05,128.03,0.063]
[1742527961645,14.53354769,128.05,128.03,0.063]
[1742527962349,14.53354769,128.04,128.03,0.063]
[1742527975259,0.03,128.05,128.03,21.27654769]
[1742527975447,0.03,128.05,128.04,34.53354769]
[1742527976051,0.03,128.05,128.04,346.53354769]
[1742527976559,0.03,128.05,128.04,354.34354769]
[1742527979458,0.03,128.05,128.04,339.81]
[1742527979757,0.03,128.05,128.04,63.20424283]
[1742527980660,0.03,128.05,128.04,44.55459397]
[1742527981260,0.03,128.05,128.04,43.98594769]
[1742527981451,0.03,128.05,128.04,21.6424]
[1742527981873,0.03,128.05,128.03,14.5535]
[1742527982540,14.56354769,128.05,128.03,0.063]
[1742527982846,0.03,128.05,128.03,0.063]
[1742527986965,14.53354769,128.04,128.03,0.063]
[1742527987146,14.56354769,128.05,128.03,0.063]
[1742527990171,14.53354769,128.04,128.03,0.063]
[1742527991367,14.56354769,128.05,128.03,0.063]
[1742527991950,0.03,128.05,128.03,22.40714769]
[1742527992970,0.03,128.05,128.03,7.8736]
[1742527994271,14.53354769,128.04,128.03,0.063]
[1742527997368,22.34354769,128.04,128.03,0.063]
[1742527997772,14.53354769,128.04,128.03,0.063]
[1742528000371,22.34354769,128.04,128.03,0.063]
[1742528001964,14.53354769,128.04,128.03,0.063]
[1742528002865,22.34354769,128.04,128.03,0.063]
[1742528003667,14.53354769,128.04,128.03,0.063]
[1742528005569,22.34354769,128.04,128.03,0.063]
[1742528007362,118.65248731,128.04,127.99,0.063]
[1742528007673,14.53354769,128.0,127.99,0.063]
[1742528008878,14.53354769,128.01,127.99,0.063]
[1742528009785,7.8107,128.03,127.99,0.063]
[1742528009987,14.53354769,128.01,127.99,0.063]
[1742528011187,14.53354769,128.0,127.99,0.063]
[1742528012679,20.66951845,128.0,127.99,0.063]
[1742528013287,28.48201845,128.0,127.99,0.063]
[1742528014891,22.34604769,128.0,127.99,0.063]
[1742528015788,28.55325017,128.0,127.99,0.063]
[1742528015993,22.34604769,128.0,127.99,0.063]
[1742528016995,40.99569655,128.0,127.99,0.063]
[1742528018478,47.28034074,128.0,127.99,0.063]
[1742528021795,47.84898702,128.0,127.99,0.063]
[1742528023091,183.94898702,128.0,127.99,0.063]
[1742528023891,38.64964886,127.98,127.97,0.063]
[1742528024097,53.18319655,127.98,127.97,0.063]
[1742528025201,60.99689655,127.98,127.97,0.063]
[1742528026000,61.56554283,127.98,127.97,0.063]
[1742528026191,33.75184283,127.97,127.96,0.063]
[1742528026405,234.66603359,127.97,127.96,0.063]
[1742528027002,20.0,127.95,127.94,0.063]
[1742528027205,34.53354769,127.95,127.94,0.063]
[1742528027381,42.34904769,127.95,127.94,0.063]
[1742528027688,60.99869655,127.95,127.94,0.063]
[1742528028312,34.53354769,127.95,127.94,0.063]
[1742528031883,42.34904769,127.95,127.94,0.063]
[1742528033099,60.99869655,127.95,127.94,0.063]
[1742528045421,34.53354769,127.95,127.94,0.063]
[1742528045918,14.56354769,127.96,127.94,0.063]
[1742528046110,14.53354769,127.95,127.94,0.063]
[1742528046822,22.34904769,127.95,127.94,0.063]
[1742528048093,14.53354769,127.95,127.94,0.063]
[1742528050700,22.34904769,127.95,127.94,0.063]
[1742528051305,40.99869655,127.95,127.94,0.063]
[1742528051821,41.56734283,127.95,127.94,0.063]
[1742528052310,40.99869655,127.95,127.94,0.063]
[1742528054596,41.56734283,127.95,127.94,0.063]
[1742528054813,48.24734283,127.95,127.94,0.063]
[1742528061326,47.67869655,127.95,127.94,0.063]
[1742528064025,183.77869655,127.95,127.94,0.063]
[1742528066521,165.12904769,127.95,127.94,0.063]
[1742528068234,0.03,127.96,127.94,1.7196]
[1742528068410,0.03,127.96,127.94,16.25314769]
[1742528068816,0.03,127.96,127.95,7.8155]
[1742528070712,14.56354769,127.96,127.94,1.7196]
[1742528070906,0.03,127.96,127.94,1.7196]
[1742528071734,0.03,127.96,127.94,9.5356]
[1742528072041,0.03,127.96,127.94,24.06914769]
[1742528072443,0.03,127.96,127.95,14.53354769]
[1742528073520,0.03,127.96,127.94,24.06914769]
[1742528074716,22.31674769,127.99,127.94,24.06914769]
[1742528076619,14.53354769,127.97,127.94,1.7196]
[1742528077134,14.53354769,127.96,127.94,1.7196]
[1742528078443,22.34844769,127.96,127.94,0.063]
[1742528080121,14.53354769,127.97,127.94,0.063]
[1742528080326,22.34734769,127.98,127.94,14.59654769]
[1742528080748,22.34734769,127.98,127.94,0.063]
[1742528081126,14.53354769,127.97,127.94,0.063]
[1742528081547,14.53354769,127.97,127.94,7.8791]
[1742528084046,14.53354769,127.97,127.94,0.063]
[1742528088553,14.56354769,127.97,127.94,0.063]
[1742528089833,0.03,127.97,127.94,0.063]
[1742528090359,0.03,127.97,127.95,14.53354769]
[1742528090546,0.03,127.97,127.95,1.5374]
[1742528092959,0.03,127.97,127.95,9.3525]
[1742528095640,0.03,127.97,127.95,23.88604769]
[1742528098861,0.03,127.97,127.95,9.3525]
[1742528103146,0.03,127.97,127.95,23.88604769]
[1742528103548,0.03,127.97,127.95,30.56604769]
[1742528103947,0.03,127.97,127.95,16.0325]
[1742528106564,14.56354769,127.97,127.94,0.063]
[1742528106770,14.53354769,127.96,127.94,0.063]
[1742528106972,14.53354769,127.95,127.94,0.063]
[1742528107649,14.53354769,127.96,127.94,0.063]
[1742528108573,22.34894769,127.96,127.94,0.063]
[1742528109158,14.53354769,127.95,127.94,0.063]
[1742528111775,22.34904769,127.95,127.94,0.063]
[1742528112665,136.13,127.97,127.94,0.063]
[1742528112868,14.53354769,127.96,127.94,0.063]
[1742528113070,150.66354769,127.97,127.94,0.063]
[1742528113553,14.56354769,127.97,127.94,0.063]
[1742528115377,0.03,127.97,127.94,0.063]
[1742528115669,0.03,127.97,127.95,14.53354769]
[1742528115864,0.03,127.97,127.96,14.53354769]
[1742528116465,0.03,127.97,127.95,14.53354769]
[1742528117159,0.03,127.97,127.96,7.8149]
[1742528117375,0.03,127.97,127.95,22.34884769]
[1742528118377,0.03,127.97,127.95,7.8153]
[1742528121260,0.03,127.97,127.94,22.41234769]
[1742528121954,0.03,127.97,127.94,334.41234769]
[1742528123075,0.03,127.97,127.94,22.41234769]
[1742528123289,0.03,127.97,127.94,7.8788]
[1742528124564,0.03,127.97,127.95,0.063]
[1742528128087,14.53354769,127.96,127.95,0.063]
[1742528128985,22.37814769,127.97,127.95,0.063]
[1742528129169,14.53354769,127.96,127.95,0.063]
[1742528131189,22.34844769,127.96,127.95,0.063]
[1742528134994,14.53354769,127.96,127.95,0.063]
[1742528135892,22.34844769,127.96,127.95,0.063]
[1742528136792,22.37844769,127.96,127.95,0.063]
[1742528137669,14.56354769,127.96,127.95,0.063]
[1742528138285,0.03,127.96,127.95,0.063]
[1742528139184,14.56354769,127.96,127.95,0.063]
[1742528140786,22.37844769,127.96,127.95,0.063]
[1742528161004,41.02809655,127.96,127.95,0.063]
[1742528162798,99.16228731,127.96,127.95,0.063]
[1742528163001,235.83093359,127.96,127.95,0.063]
[1742528166604,99.73093359,127.96,127.95,0.063]
[1742528166890,99.73093359,127.96,127.94,0.063]
[1742528166891,15.10219397,127.95,127.94,0.063]
[1742528168207,41.56734283,127.95,127.94,0.063]
[1742528168410,0.56864628,127.93,127.92,0.063]
[1742528168608,18.64964886,127.92,127.9,0.063]
[1742528169537,7.8179,127.91,127.9,0.063]
[1742528169710,14.53354769,127.91,127.9,0.063]
[1742528170019,21.21354769,127.93,127.9,0.063]
[1742528170221,14.53354769,127.93,127.9,0.063]
[1742528170391,14.53354769,127.93,127.9,1.5896]
[1742528171487,14.53354769,127.95,127.91,7.8179]
[1742528171696,14.56354769,127.96,127.91,22.35144769]
[1742528171895,0.03,127.96,127.93,14.53354769]
[1742528172103,0.03,127.96,127.94,14.53354769]
[1742528173911,0.03,127.96,127.95,7.8155]
[1742528175916,0.03,127.96,127.94,7.8161]
[1742528176318,0.03,127.96,127.94,22.34964769]
[1742528180014,0.03,127.96,127.95,1.5166]
[1742528180222,0.03,127.96,127.95,30.23994769]
[1742528183023,0.03,127.96,127.95,342.23994769]
[1742528183401,0.03,127.96,127.95,321.3321]
[1742528188126,0.03,127.96,127.94,7.8161]
[1742528188426,0.03,127.96,127.94,14.4761]
[1742528189127,0.03,127.96,127.94,29.00964769]
[1742528190426,0.03,127.96,127.95,14.53354769]
[1742528191124,0.03,127.96,127.95,326.53354769]
[1742528191732,0.03,127.96,127.95,312.0]
[1742528191911,0.03,127.96,127.95,319.8155]
[1742528194432,0.03,127.96,127.94,6.66]
[1742528195024,14.56354769,127.96,127.94,6.66]
[1742528195428,0.03,127.96,127.94,6.66]
[1742528197731,0.03,127.96,127.93,355.96214769]
[1742528197916,0.03,127.96,127.93,321.4286]
[1742528198619,14.56354769,127.96,127.92,0.063]
[1742528198825,14.56354769,127.96,127.92,6.723]
[1742528200440,22.37864769,127.96,127.92,6.723]
[1742528201038,22.37864769,127.96,127.92,14.5402]
[1742528201218,0.03,127.96,127.92,29.07374769]
[1742528201619,0.03,127.96,127.92,341.07374769]
[1742528202624,0.03,127.96,127.92,334.41374769]
[1742528202827,0.03,127.96,127.92,341.07374769]
[1742528204844,0.03,127.96,127.92,29.07374769]
[1742528207740,0.03,127.96,127.92,341.07374769]
[1742528211843,0.03,127.96,127.95,14.53354769]
[1742528212235,0.03,127.96,127.95,22.34904769]
[1742528216063,0.03,127.96,127.95,334.34904769]
[1742528218555,0.03,127.96,127.95,354.34904769]
[1742528219351,0.03,127.96,127.95,42.34904769]
[1742528222344,0.03,127.96,127.95,354.34904769]
[1742528222957,0.03,127.96,127.95,354.91769397]
[1742528225462,0.03,127.96,127.95,42.91769397]
[1742528228274,0.03,127.96,127.95,354.91769397]
[1742528233066,0.03,127.96,127.95,373.56734283]
[1742528235349,0.03,127.96,127.95,354.91769397]
[1742528238366,0.03,127.96,127.95,354.34904769]
[1742528243972,0.03,127.96,127.95,61.56734283]
[1742528244178,0.03,127.96,127.95,63.21134283]
[1742528244356,0.03,127.96,127.95,121.34553359]
[1742528244557,0.03,127.97,127.96,18.64964886]
[1742528244857,0.03,127.97,127.96,91.31738731]
[1742528245255,0.03,127.99,127.98,20.56864628]
[1742528245553,0.03,127.99,127.98,60.41184283]
[1742528245880,0.03,127.99,127.98,41.76219397]
[1742528246377,0.03,127.99,127.98,49.57589397]
[1742528246582,0.03,127.99,127.98,6.66]
[1742528248278,0.03,127.99,127.98,21.19354769]
[1742528248783,0.03,127.99,127.98,6.66]
[1742528249583,0.03,127.99,127.97,312.0]
[1742528249780,0.03,127.99,127.96,14.53354769]
[1742528252673,0.03,127.99,127.96,326.53354769]
[1742528255189,0.03,127.99,127.96,326.59654769]
[1742528255988,0.03,127.99,127.96,14.59654769]
[1742528256771,0.03,127.99,127.96,22.41134769]
[1742528257079,0.03,127.99,127.97,14.53354769]
[1742528257871,0.03,127.99,127.96,22.41134769]
[1742528258786,0.03,127.99,127.96,334.41134769]
[1742528260676,0.03,127.99,127.96,22.41134769]
[1742528261380,14.56354769,127.99,127.96,0.063]
[1742528262490,22.37664769,127.99,127.96,0.063]
[1742528263987,14.53354769,127.98,127.96,0.063]
[1742528264187,22.37664769,127.99,127.96,0.063]
[1742528268410,14.53354769,127.98,127.96,0.063]
[1742528269616,22.37664769,127.99,127.96,0.063]
[1742528276288,14.56354769,127.99,127.96,0.063]
[1742528276597,0.03,127.99,127.96,0.063]
[1742528276796,22.37674769,127.99,127.96,0.063]
[1742528285595,14.53354769,127.97,127.96,0.063]
[1742528285813,14.53354769,127.98,127.96,0.063]
[1742528286120,22.37674769,127.99,127.96,0.063]
[1742528286417,22.34734769,127.98,127.96,0.063]
[1742528286796,7.8138,127.98,127.96,0.063]
[1742528293713,22.37684769,127.99,127.96,0.063]
[1742528301023,7.8433,127.99,127.96,0.063]
[1742528301222,0.03,127.99,127.96,0.063]
[1742528309131,14.56354769,127.99,127.96,0.063]
[1742528310642,14.53354769,127.98,127.96,0.063]
[1742528311111,7.8143,127.97,127.96,0.063]
[1742528311310,22.34784769,127.97,127.96,0.063]
[1742528313543,40.99749655,127.97,127.96,0.063]
[1742528316045,14.53354769,127.97,127.96,0.063]
[1742528316223,22.34764769,127.98,127.96,0.063]
[1742528316425,0.03,127.99,127.97,21.19354769]
[1742528316653,0.03,127.99,127.98,14.53354769]
[1742528317852,0.03,127.99,127.98,22.34724769]
[1742528319317,0.03,127.99,127.98,334.34724769]
[1742528319523,0.03,127.99,127.98,334.91589397]
[1742528319724,0.03,127.99,127.98,326.53354769]
[1742528321155,0.03,127.99,127.98,334.34724769]